bitfinex-derivatives/quotes_BNBF0:USTF0_20250510
["timestamp","ask_amount","ask_price","bid_price","bid_amount"]
[1746907042136,1.96604543,653.52,651.7,0.30688967]
[1746907042433,0.85864576,653.51,651.7,0.30688967]
[1746907042835,0.28169095,653.5,651.7,0.30688967]
[1746907043228,0.28169095,653.49,651.7,0.30688967]
[1746907043529,0.28169095,653.48,651.7,0.30688967]
[1746907043733,0.28169095,653.47,651.7,0.30688967]
[1746907044033,0.28169095,653.46,651.7,0.30688967]
[1746907044433,0.28169095,653.45,651.7,0.30688967]
[1746907044734,0.28169095,653.44,651.7,0.30688967]
[1746907045132,0.28169095,653.43,651.7,0.30688967]
[1746907045535,0.28169095,653.42,651.7,0.30688967]
[1746907045831,0.28169095,653.41,651.7,0.30688967]
[1746907046232,0.28169095,653.4,651.7,0.30688967]
[1746907046540,0.28169095,653.39,651.7,0.30688967]
[1746907046836,0.28169095,653.38,651.7,0.30688967]
[1746907047237,0.28169095,653.37,651.7,0.30688967]
[1746907047537,0.28169095,653.36,651.7,0.30688967]
[1746907047934,0.28169095,653.35,651.7,0.30688967]
[1746907048337,0.28169095,653.34,651.7,0.30688967]
[1746907048837,0.28169095,653.33,651.7,0.30688967]
[1746907049239,0.28169095,653.7,651.7,0.30688967]
[1746907049532,0.28169095,653.69,651.7,0.30688967]
[1746907049836,0.28169095,653.68,651.7,0.30688967]
[1746907050233,0.28169095,653.67,651.7,0.30688967]
[1746907050636,0.28169095,653.66,651.7,0.30688967]
[1746907051131,0.28169095,653.65,651.7,0.30688967]
[1746907051436,0.28169095,653.64,651.7,0.30688967]
[1746907052432,0.28169095,653.63,651.7,0.30688967]
[1746907052936,0.28169095,653.62,651.7,0.30688967]
[1746907053436,0.28169095,653.61,651.7,0.30688967]
[1746907054037,0.28169095,653.6,651.7,0.30688967]
[1746907054540,0.28169095,653.59,651.7,0.30688967]
[1746907054837,0.28169095,653.58,651.7,0.30688967]
[1746907055233,0.28169095,653.57,651.7,0.30688967]
[1746907056238,0.28169095,653.56,651.7,0.30688967]
[1746907056538,0.28169095,653.55,651.7,0.30688967]
[1746907056834,0.28169095,653.54,651.7,0.30688967]
[1746907057333,0.28169095,653.53,651.7,0.30688967]
[1746907057938,0.28169095,653.52,651.7,0.30688967]
[1746907058337,0.28169095,653.51,651.7,0.30688967]
[1746907059040,0.28169095,653.5,651.7,0.30688967]
[1746907059638,0.28169095,653.49,651.7,0.30688967]
[1746907060036,0.28169095,653.48,651.7,0.30688967]
[1746907060439,0.28169095,653.47,651.7,0.30688967]
[1746907060738,0.28169095,653.46,651.7,0.30688967]
[1746907061140,0.28169095,653.45,651.7,0.30688967]
[1746907062041,0.28169095,653.44,651.7,0.30688967]
[1746907062339,0.28169095,653.43,651.7,0.30688967]
[1746907062739,0.28169095,653.42,651.7,0.30688967]
[1746907063040,0.28169095,653.41,651.7,0.30688967]
[1746907063538,0.28169095,653.4,651.7,0.30688967]
[1746907063938,0.28169095,653.39,651.7,0.30688967]
[1746907064434,0.28169095,653.38,651.7,0.30688967]
[1746907064735,0.28169095,653.37,651.7,0.30688967]
[1746907065238,0.28169095,653.36,651.7,0.30688967]
[1746907065438,0.28169095,653.35,651.7,0.30688967]
[1746907066040,0.28169095,653.34,651.7,0.30688967]
[1746907066436,0.28169095,653.33,651.7,0.30688967]
[1746907066741,0.28169095,653.32,651.7,0.30688967]
[1746907067135,0.28169095,653.31,651.7,0.30688967]
[1746907067442,0.28169095,653.3,651.7,0.30688967]
[1746907067736,0.28169095,653.29,651.7,0.30688967]
[1746907068240,0.28169095,653.28,651.7,0.30688967]
[1746907068540,0.28169095,653.27,651.7,0.30688967]
[1746907068941,0.57695481,653.52,651.7,0.30688967]
[1746907068942,0.28169095,653.26,651.7,0.30688967]
[1746907069443,0.28169095,653.25,651.7,0.30688967]
[1746907069940,0.28169095,653.24,651.7,0.30688967]
[1746907070342,0.28169095,653.23,651.7,0.30688967]
[1746907070941,0.28169095,653.22,651.7,0.30688967]
[1746907071339,0.28169095,653.21,651.7,0.30688967]
[1746907071741,0.28169095,653.2,651.7,0.30688967]
[1746907072039,0.28169095,653.19,651.7,0.30688967]
[1746907072337,0.28169095,653.18,651.7,0.30688967]
[1746907072740,0.28169095,653.17,651.7,0.30688967]
[1746907073237,0.28169095,653.16,651.7,0.30688967]
[1746907073436,0.28169095,653.15,651.7,0.30688967]
[1746907073844,0.28169095,653.14,651.7,0.30688967]
[1746907074241,0.28169095,653.13,651.7,0.30688967]
[1746907074743,0.28169095,653.12,651.7,0.30688967]
[1746907075341,0.28169095,653.11,651.7,0.30688967]
[1746907075744,0.28169095,653.1,651.7,0.30688967]
[1746907076441,0.28169095,653.09,651.7,0.30688967]
[1746907076736,0.28169095,653.08,651.7,0.30688967]
[1746907077042,0.28169095,653.07,651.7,0.30688967]
[1746907077338,0.28169095,653.06,651.7,0.30688967]
[1746907077644,0.28169095,653.05,651.7,0.30688967]
[1746907078137,0.28169095,653.04,651.7,0.30688967]
[1746907078544,0.57695481,653.22,651.7,0.30688967]
[1746907078545,0.28169095,653.03,651.7,0.30688967]
[1746907079044,0.28169095,653.02,651.7,0.30688967]
[1746907079343,0.28169095,653.01,651.7,0.30688967]
[1746907079744,0.28169095,653.0,651.7,0.30688967]
[1746907080141,0.28169095,652.99,651.7,0.30688967]
[1746907080643,0.28169095,652.98,651.7,0.30688967]
[1746907081044,0.28169095,652.97,651.7,0.30688967]
[1746907081642,0.28169095,652.96,651.7,0.30688967]
[1746907081844,0.28169095,652.95,651.7,0.30688967]
[1746907082146,0.28169095,653.19,651.7,0.30688967]
[1746907082545,0.28169095,653.18,651.7,0.30688967]
[1746907082841,0.28169095,653.17,651.7,0.30688967]
[1746907083246,0.28169095,653.16,651.7,0.30688967]
[1746907083547,0.28169095,653.15,651.7,0.30688967]
[1746907084048,0.28169095,653.14,651.7,0.30688967]
[1746907084248,0.28169095,653.13,651.7,0.30688967]
[1746907084546,0.28169095,653.12,651.7,0.30688967]
[1746907084847,0.28169095,653.11,651.7,0.30688967]
[1746907085146,0.28169095,653.1,651.7,0.30688967]
[1746907085443,0.28169095,653.09,651.7,0.30688967]
[1746907085748,0.28169095,653.08,651.7,0.30688967]
[1746907086149,0.28169095,653.07,651.7,0.30688967]
[1746907086449,0.28169095,653.06,651.7,0.30688967]
[1746907087046,0.28169095,653.05,651.7,0.30688967]
[1746907087449,0.28169095,653.15,651.71,0.27439265]
[1746907087748,0.28169095,653.14,651.71,0.27439265]
[1746907088044,1.96604543,653.12,651.71,0.27439265]
[1746907088248,1.96604543,653.12,651.73,0.30687554]
[1746907088443,0.85864576,653.11,651.74,0.27439265]
[1746907088749,0.85864576,653.11,651.73,0.30687554]
[1746907088750,1.96604543,653.12,651.73,0.30687554]
[1746907089051,0.85864266,653.11,651.73,0.30687554]
[1746907090146,0.85864266,653.38,651.73,0.30687554]
[1746907090651,0.28168992,653.37,651.73,0.30687554]
[1746907090952,0.28168992,653.36,651.73,0.30687554]
[1746907091251,0.28168992,653.35,651.73,0.30687554]
[1746907091551,0.28168992,653.34,651.73,0.30687554]
[1746907091852,0.28168992,653.33,651.73,0.30687554]
[1746907092147,0.28168992,653.32,651.73,0.30687554]
[1746907092452,0.28168992,653.31,651.73,0.30687554]
[1746907092754,0.28168992,653.3,651.73,0.30687554]
[1746907093049,0.28168992,653.29,651.73,0.30687554]
[1746907093453,0.28168992,653.28,651.73,0.30687554]
[1746907093854,0.28168992,653.27,651.73,0.30687554]
[1746907094153,0.57695274,653.41,651.73,0.30687554]
[1746907094154,0.28168992,653.26,651.73,0.30687554]
[1746907094647,0.28168992,653.25,651.73,0.30687554]
[1746907095050,0.28168992,653.24,651.73,0.30687554]
[1746907095453,0.28168992,653.23,651.73,0.30687554]
[1746907095754,0.28168992,653.22,651.73,0.30687554]
[1746907096253,0.28168992,653.21,651.73,0.30687554]
[1746907096656,0.28168992,653.2,651.73,0.30687554]
[1746907097055,0.57695274,653.42,651.73,0.30687554]
[1746907097056,0.28168992,653.19,651.73,0.30687554]
[1746907097355,0.28168992,653.49,651.73,0.30687554]
[1746907097852,0.28168992,653.48,651.73,0.30687554]
[1746907098359,0.28168992,653.47,651.73,0.30687554]
[1746907098552,0.28168992,653.46,651.73,0.30687554]
[1746907098856,0.28168992,653.45,651.73,0.30687554]
[1746907099159,0.28168992,653.44,651.73,0.30687554]
[1746907099859,0.28168992,653.43,651.73,0.30687554]
[1746907100059,0.28168992,653.43,651.74,0.642]
[1746907100260,0.28168992,653.42,651.76,0.30686142]
[1746907100459,0.28168992,653.41,651.76,0.30686142]
[1746907100856,0.28168992,653.4,651.76,0.30686142]
[1746907101262,0.28168992,653.39,651.76,0.30686142]
[1746907101660,0.28168992,653.38,651.76,0.30686142]
[1746907101963,0.28168992,653.37,651.76,0.30686142]
[1746907102456,0.28168992,653.36,651.76,0.30686142]
[1746907102860,0.28168992,653.35,651.76,0.30686142]
[1746907103261,0.28168992,653.61,651.76,0.30686142]
[1746907103562,0.28168992,653.6,651.76,0.30686142]
[1746907104060,0.28168992,653.59,651.76,0.30686142]
[1746907104357,0.28168992,653.58,651.76,0.30686142]
[1746907104856,0.28168992,653.57,651.76,0.30686142]
[1746907105061,0.28168992,653.56,651.76,0.30686142]
[1746907105461,0.28168992,653.55,651.76,0.30686142]
[1746907105863,0.28168992,653.54,651.76,0.30686142]
[1746907106056,0.57695274,653.8,651.76,0.30686142]
[1746907106057,1.96604543,653.81,651.76,0.30686142]
[1746907106462,0.85850619,653.8,651.76,0.30686142]
[1746907106765,0.28164449,653.79,651.76,0.30686142]
[1746907107162,0.28164449,653.78,651.76,0.30686142]
[1746907107559,0.28164449,653.77,651.76,0.30686142]
[1746907108359,0.28164449,653.76,651.76,0.30686142]
[1746907109062,0.28164449,653.75,651.76,0.30686142]
[1746907109259,0.28164449,653.75,651.77,0.27421691]
[1746907109463,0.28164449,653.75,651.79,0.30684729]
[1746907109664,0.28164449,653.74,651.79,0.30684729]
[1746907110066,0.28164449,653.73,651.79,0.30684729]
[1746907110366,0.28164449,653.72,651.79,0.30684729]
[1746907110561,0.28164449,653.71,651.8,0.27416393]
[1746907110767,0.28164449,653.71,651.82,0.30683317]
[1746907110966,0.28164449,653.7,651.82,0.30683317]
[1746907111266,0.28164449,653.69,651.83,0.27416393]
[1746907111463,0.28164449,653.69,651.85,0.30681905]
[1746907111660,0.28164449,653.68,651.85,0.30681905]
[1746907112069,0.28164449,653.67,651.85,0.30681905]
[1746907112369,0.28164449,653.66,651.85,0.30681905]
[1746907112764,0.28164449,653.65,651.85,0.30681905]
[1746907113171,0.28164449,653.64,651.85,0.30681905]
[1746907113571,0.28164449,653.63,651.85,0.30681905]
[1746907113969,0.28164449,653.62,651.85,0.30681905]
[1746907114671,0.28164449,653.61,651.85,0.30681905]
[1746907114971,0.28164449,653.6,651.85,0.30681905]
[1746907115270,0.28164449,653.59,651.85,0.30681905]
[1746907115570,0.28164449,653.58,651.85,0.30681905]
[1746907115870,0.28164449,653.57,651.85,0.30681905]
[1746907116167,0.28164449,653.56,651.85,0.30681905]
[1746907116671,0.28164449,653.55,651.85,0.30681905]
[1746907116975,0.28164449,653.54,651.85,0.30681905]
[1746907117274,0.28164449,653.53,651.85,0.30681905]
[1746907117572,0.28164449,653.52,651.85,0.30681905]
[1746907117773,0.28164449,653.51,651.85,0.30681905]
[1746907118274,0.28164449,653.92,651.85,0.30681905]
[1746907118570,0.28164449,653.91,651.85,0.30681905]
[1746907118874,0.28164449,653.9,651.85,0.30681905]
[1746907119470,0.5768617,653.95,651.85,0.30681905]
[1746907119471,0.28164449,653.89,651.85,0.30681905]
[1746907119770,0.28164449,653.88,651.85,0.30681905]
[1746907120076,0.5768617,653.98,651.85,0.30681905]
[1746907120077,0.28164449,653.87,651.85,0.30681905]
[1746907120375,0.28164449,653.86,651.85,0.30681905]
[1746907120677,0.28164449,653.85,651.85,0.30681905]
[1746907120978,1.96604543,654.02,651.85,0.30681905]
[1746907121277,0.28161734,653.92,651.85,0.30681905]
[1746907121776,0.28161734,653.91,651.85,0.30681905]
[1746907122176,0.28161734,653.9,651.85,0.30681905]
[1746907122773,0.28161734,653.89,651.85,0.30681905]
[1746907123374,0.28161734,653.88,651.85,0.30681905]
[1746907123678,0.28161734,653.87,651.85,0.30681905]
[1746907123981,0.28161734,653.86,651.85,0.30681905]
[1746907124282,0.28161734,653.85,651.85,0.30681905]
[1746907124880,0.28161734,653.84,651.85,0.30681905]
[1746907125181,0.28161734,653.83,651.85,0.30681905]
[1746907125484,0.28161734,653.82,651.85,0.30681905]
[1746907125781,0.28161734,653.81,651.85,0.30681905]
[1746907126082,0.28161734,653.8,651.86,0.27402868]
[1746907126284,0.28161734,653.8,651.88,0.30680493]
[1746907126483,0.28161734,653.79,651.88,0.30680493]
[1746907126782,0.28161734,653.78,651.88,0.30680493]
[1746907127177,0.28161734,653.77,651.88,0.30680493]
[1746907127483,0.28161734,653.76,651.88,0.30680493]
[1746907127782,0.28161734,653.75,651.88,0.30680493]
[1746907128084,0.28161734,653.74,651.88,0.30680493]
[1746907128385,0.28161734,653.73,651.89,0.27403091]
[1746907128784,0.28161734,653.72,651.88,0.30680493]
[1746907129286,1.96604543,653.75,651.88,0.30680493]
[1746907129686,0.85843137,653.74,651.88,0.30680493]
[1746907130187,0.28161958,653.73,651.89,0.2740633]
[1746907130381,0.28161958,653.73,651.91,0.30679081]
[1746907130584,0.28161958,653.72,651.91,0.30679081]
[1746907130986,0.28161958,653.71,651.91,0.30679081]
[1746907131286,0.28161958,653.7,651.91,0.30679081]
[1746907131686,0.28161958,653.69,651.91,0.30679081]
[1746907131986,1.96604543,653.65,651.91,0.30679081]
[1746907132388,0.85843137,653.64,651.91,0.30679081]
[1746907132783,0.28161958,653.63,651.91,0.30679081]
[1746907133290,0.28161958,653.62,651.92,0.27403179]
[1746907133491,0.28161958,653.62,651.94,0.30677669]
[1746907133690,0.28161958,653.61,651.94,0.30677669]
[1746907133990,0.28161958,653.6,651.94,0.30677669]
[1746907134288,0.28161958,653.59,651.94,0.30677669]
[1746907134592,2.24766501,653.58,651.94,0.30677669]
[1746907134892,0.85843137,653.57,651.94,0.30677669]
[1746907135192,0.28161958,653.56,651.94,0.30677669]
[1746907135492,0.28161958,653.55,651.94,0.30677669]
[1746907135892,0.28161958,653.54,651.94,0.30677669]
[1746907136293,0.28161958,653.53,651.94,0.30677669]
[1746907136893,0.28161958,653.52,651.94,0.30677669]
[1746907137292,0.28161958,653.51,651.94,0.30677669]
[1746907137689,0.28161958,653.5,651.94,0.30677669]
[1746907138095,0.28161958,653.49,651.94,0.30677669]
[1746907138597,0.28161958,653.48,651.95,0.2739858]
[1746907138795,0.28161958,653.48,651.97,0.30676258]
[1746907138995,0.28161958,653.47,651.97,0.30676258]
[1746907139295,0.28161958,653.46,651.97,0.30676258]
[1746907139591,1.96604543,653.5,651.97,0.30676258]
[1746907139896,0.85842924,653.49,651.97,0.30676258]
[1746907140191,0.28161887,653.48,651.97,0.30676258]
[1746907140495,0.28161887,653.47,651.97,0.30676258]
[1746907140796,0.28161887,653.46,651.97,0.30676258]
[1746907141296,0.28161887,653.45,651.97,0.30676258]
[1746907141489,1.96604543,653.43,651.97,0.30676258]
[1746907141994,0.85842924,653.42,651.97,0.30676258]
[1746907142296,0.28161887,653.41,651.97,0.30676258]
[1746907142696,0.28161887,653.4,651.97,0.30676258]
[1746907143101,0.28161887,653.39,651.97,0.30676258]
[1746907143298,0.28161887,653.38,651.97,0.30676258]
[1746907143698,0.28161887,653.37,651.97,0.30676258]
[1746907144002,0.28161887,653.36,651.97,0.30676258]
[1746907144401,0.28161887,653.35,651.97,0.30676258]
[1746907144799,0.28161887,653.34,651.97,0.30676258]
[1746907145199,0.28161887,653.33,651.97,0.30676258]
[1746907145499,0.28161887,653.32,651.97,0.30676258]
[1746907145900,0.28161887,653.31,651.97,0.30676258]
[1746907146200,0.28161887,653.3,651.97,0.30676258]
[1746907146495,0.28161887,653.29,651.97,0.30676258]
[1746907146802,0.28161887,653.28,651.97,0.30676258]
[1746907147202,0.28161887,653.27,651.97,0.30676258]
[1746907147601,0.28161887,653.26,651.97,0.30676258]
[1746907147901,0.28161887,653.25,651.97,0.30676258]
[1746907148402,0.28161887,653.24,651.97,0.30676258]
[1746907148796,0.28161887,653.23,651.97,0.30676258]
[1746907149202,1.96604543,653.35,651.97,0.30676258]
[1746907149702,0.85847653,653.34,651.97,0.30676258]
[1746907150102,0.28163461,653.33,651.97,0.30676258]
[1746907150602,0.28163461,653.32,651.97,0.30676258]
[1746907150997,0.28163461,653.31,651.97,0.30676258]
[1746907151401,0.28163461,653.3,651.97,0.30676258]
[1746907151703,0.28163461,653.29,651.97,0.30676258]
[1746907152200,0.28163461,653.28,651.97,0.30676258]
[1746907152499,1.96604543,653.36,651.97,0.30676258]
[1746907152803,0.85846905,653.35,651.97,0.30676258]
[1746907154405,1.96604543,653.69,651.97,0.30676258]
[1746907154805,0.85847233,653.68,651.97,0.30676258]
[1746907155100,1.96604543,653.69,651.97,0.30676258]
[1746907155505,1.96604543,653.7,651.97,0.30676258]
[1746907155703,0.8584703,653.68,651.97,0.30676258]
[1746907156007,0.28163254,653.67,651.97,0.30676258]
[1746907156706,0.28163254,653.66,651.97,0.30676258]
[1746907157003,0.28163254,653.65,651.97,0.30676258]
[1746907157408,0.28163254,653.64,651.97,0.30676258]
[1746907157807,0.28163254,653.63,651.97,0.30676258]
[1746907158306,0.28163254,653.62,651.97,0.30676258]
[1746907158510,1.96604543,653.7,651.97,0.30676258]
[1746907159111,0.85847592,653.69,651.97,0.30676258]
[1746907159612,0.28163441,653.68,651.97,0.30676258]
[1746907160012,0.28163441,653.67,651.97,0.30676258]
[1746907160408,0.28163441,653.66,651.97,0.30676258]
[1746907160714,0.28163441,653.65,651.97,0.30676258]
[1746907161113,0.28163441,653.64,651.97,0.30676258]
[1746907161412,0.28163441,653.63,651.97,0.30676258]
[1746907161813,0.28163441,653.62,651.97,0.30676258]
[1746907162114,0.28163441,653.61,651.97,0.30676258]
[1746907162514,0.28163441,653.6,651.97,0.30676258]
[1746907163116,0.28163441,653.59,651.97,0.30676258]
[1746907163615,0.28163441,653.58,651.97,0.30676258]
[1746907164015,0.28163441,653.57,651.97,0.30676258]
[1746907164410,0.28163441,653.56,651.97,0.30676258]
[1746907164714,0.28163441,653.55,651.97,0.30676258]
[1746907165215,0.28163441,653.54,651.97,0.30676258]
[1746907165414,0.28163441,653.53,651.97,0.30676258]
[1746907165915,0.28163441,653.52,651.97,0.30676258]
[1746907166418,0.28163441,653.51,651.97,0.30676258]
[1746907166817,0.28163441,653.5,651.97,0.30676258]
[1746907167219,0.28163441,653.49,651.97,0.30676258]
[1746907167715,0.28163441,653.48,651.97,0.30676258]
[1746907168019,0.28163441,653.47,651.97,0.30676258]
[1746907168519,0.28163441,653.46,651.97,0.30676258]
[1746907168921,0.28163441,653.45,651.97,0.30676258]
[1746907169220,0.28163441,653.77,651.97,0.30676258]
[1746907169621,0.28163441,653.76,651.97,0.30676258]
[1746907170015,0.28163441,653.75,651.97,0.30676258]
[1746907170321,0.28163441,653.74,651.97,0.30676258]
[1746907170720,0.28163441,653.73,651.97,0.30676258]
[1746907171121,1.96604543,653.52,651.97,0.30676258]
[1746907171520,0.85847592,653.51,651.97,0.30676258]
[1746907171920,0.28163441,653.5,651.97,0.30676258]
[1746907172221,0.28163441,653.49,651.97,0.30676258]
[1746907172621,0.28163441,653.48,651.97,0.30676258]
[1746907173019,0.28163441,653.47,651.97,0.30676258]
[1746907173322,0.28163441,653.46,651.97,0.30676258]
[1746907173520,1.96604543,653.4,651.97,0.30676258]
[1746907174020,0.85847592,653.39,651.97,0.30676258]
[1746907174619,0.28163441,653.38,651.97,0.30676258]
[1746907174920,0.28163441,653.37,651.97,0.30676258]
[1746907175221,0.28163441,653.36,651.97,0.30676258]
[1746907175822,0.57684151,653.39,651.97,0.30676258]
[1746907175823,0.28163441,653.35,651.97,0.30676258]
[1746907176224,0.28163441,653.34,651.97,0.30676258]
[1746907176718,0.28163441,653.33,651.97,0.30676258]
[1746907177019,0.28163441,653.32,651.97,0.30676258]
[1746907177418,0.28163441,653.31,651.97,0.30676258]
[1746907177724,0.28163441,653.3,651.97,0.30676258]
[1746907178023,0.28163441,653.29,651.97,0.30676258]
[1746907178424,0.28163441,653.41,651.97,0.30676258]
[1746907178925,0.28163441,653.4,651.97,0.30676258]
[1746907179526,0.28163441,653.39,651.97,0.30676258]
[1746907179826,0.28163441,653.38,651.97,0.30676258]
[1746907180625,0.28163441,653.37,651.97,0.30676258]
[1746907181026,0.28163441,653.36,651.97,0.30676258]
[1746907181426,0.28163441,653.35,651.97,0.30676258]
[1746907181726,0.28163441,653.34,651.97,0.30676258]
[1746907182226,0.28163441,653.33,651.97,0.30676258]
[1746907182827,0.28163441,653.32,651.97,0.30676258]
[1746907183123,0.28163441,653.31,651.97,0.30676258]
[1746907183628,0.28163441,653.3,651.97,0.30676258]
[1746907184129,0.28163441,653.29,651.97,0.30676258]
[1746907184428,0.28163441,653.55,651.98,0.585]
[1746907184927,0.28163441,653.55,652.0,0.30674846]
[1746907185129,0.28163441,653.54,652.0,0.30674846]
[1746907185424,0.28163441,653.53,652.0,0.30674846]
[1746907185728,0.57684151,653.56,652.0,0.30674846]
[1746907185729,0.28163441,653.52,652.0,0.30674846]
[1746907186131,0.28163441,653.51,652.0,0.30674846]
[1746907186629,0.28163441,653.5,652.0,0.30674846]
[1746907187124,0.28163441,653.49,652.0,0.30674846]
[1746907187430,0.28163441,653.48,652.0,0.30674846]
[1746907187927,0.28163441,653.47,652.0,0.30674846]
[1746907188332,1.96604543,653.41,652.0,0.30674846]
[1746907188632,0.85847592,653.4,652.0,0.30674846]
[1746907189032,0.28163441,653.39,652.0,0.30674846]
[1746907189432,0.28163441,653.38,652.0,0.30674846]
[1746907190033,0.28163441,653.37,652.0,0.30674846]
[1746907190337,0.28163441,653.36,652.0,0.30674846]
[1746907190636,0.28163441,653.35,652.0,0.30674846]
[1746907191036,0.28163441,653.34,652.0,0.30674846]
[1746907191431,0.28163441,653.33,652.0,0.30674846]
[1746907191832,0.28163441,653.32,652.0,0.30674846]
[1746907192137,0.28163441,653.31,652.0,0.30674846]
[1746907192537,0.28163441,653.3,652.0,0.30674846]
[1746907192938,0.28163441,653.29,652.0,0.30674846]
[1746907193439,0.28163441,653.28,652.0,0.30674846]
[1746907193839,0.28163441,653.27,652.0,0.30674846]
[1746907194341,0.28163441,653.26,652.0,0.30674846]
[1746907194734,0.28163441,653.25,652.0,0.30674846]
[1746907195134,0.28163441,653.24,652.0,0.30674846]
[1746907195541,0.28163441,653.23,652.0,0.30674846]
[1746907195935,0.28163441,653.22,652.0,0.30674846]
[1746907196340,0.28163441,653.21,652.0,0.30674846]
[1746907196639,0.28163441,653.2,652.0,0.30674846]
[1746907197041,0.28163441,653.45,652.0,0.30674846]
[1746907197340,0.28163441,653.44,652.0,0.30674846]
[1746907197743,0.28163441,653.43,652.0,0.30674846]
[1746907198242,0.28163441,653.42,652.0,0.30674846]
[1746907198440,1.96604543,653.47,652.0,0.30674846]
[1746907198845,0.85842029,653.46,652.0,0.30674846]
[1746907199243,0.28161589,653.45,652.0,0.30674846]
[1746907199642,0.28161589,653.44,652.0,0.30674846]
[1746907200145,0.28161589,653.43,652.0,0.30674846]
[1746907200445,0.28161589,653.42,652.0,0.30674846]
[1746907200844,0.28161589,653.41,652.0,0.30674846]
[1746907201147,0.28161589,653.4,652.0,0.30674846]
[1746907201445,0.28161589,653.39,652.0,0.30674846]
[1746907201841,0.28161589,653.38,652.0,0.30674846]
[1746907202142,0.28161589,653.37,652.0,0.30674846]
[1746907202546,0.28161589,653.36,652.0,0.30674846]
[1746907202845,0.28161589,653.35,652.0,0.30674846]
[1746907203248,0.28161589,653.34,652.0,0.30674846]
[1746907203847,0.28161589,653.33,652.0,0.30674846]
[1746907204649,0.28161589,653.32,652.0,0.30674846]
[1746907205050,0.28161589,653.31,652.0,0.30674846]
[1746907205444,0.28161589,653.3,652.0,0.30674846]
[1746907205845,0.28161589,653.57,652.0,0.30674846]
[1746907206249,0.28161589,653.56,652.0,0.30674846]
[1746907207151,0.28161589,653.55,652.0,0.30674846]
[1746907207451,0.28161589,653.54,652.0,0.30674846]
[1746907207847,0.28161589,653.53,652.0,0.30674846]
[1746907208347,0.28161589,653.52,652.0,0.30674846]
[1746907208550,1.96604543,653.57,652.0,0.30674846]
[1746907208751,1.96604543,653.65,652.0,0.30674846]
[1746907209047,0.57673212,653.64,652.0,0.30674846]
[1746907209246,0.85831193,653.64,652.0,0.30674846]
[1746907209450,0.28157981,653.63,652.0,0.30674846]
[1746907209952,0.28157981,653.62,652.0,0.30674846]
[1746907210449,0.28157981,653.61,652.0,0.30674846]
[1746907210854,0.28157981,653.6,652.0,0.30674846]
[1746907211149,0.28157981,653.59,652.0,0.30674846]
[1746907211654,0.28157981,653.58,652.0,0.30674846]
[1746907211949,0.28157981,653.57,652.0,0.30674846]
[1746907212253,0.28157981,653.66,652.0,0.30674846]
[1746907212656,0.28157981,653.65,652.0,0.30674846]
[1746907213053,0.28157981,653.64,652.0,0.30674846]
[1746907213349,0.28157981,653.63,652.0,0.30674846]
[1746907213754,0.28157981,653.62,652.0,0.30674846]
[1746907214253,0.28157981,653.61,652.0,0.30674846]
[1746907214555,0.28157981,653.6,652.0,0.30674846]
[1746907214955,0.28157981,653.59,652.0,0.30674846]
[1746907215456,0.28157981,653.58,652.0,0.30674846]
[1746907215755,0.28157981,653.57,652.0,0.30674846]
[1746907216155,0.28157981,653.56,652.0,0.30674846]
[1746907216455,0.28157981,653.55,652.0,0.30674846]
[1746907216854,0.28157981,653.54,652.0,0.30674846]
[1746907217158,0.28157981,653.53,652.0,0.30674846]
[1746907217557,0.28157981,653.52,652.0,0.30674846]
[1746907217958,0.28157981,653.51,652.0,0.30674846]
[1746907218361,0.28157981,653.5,652.0,0.30674846]
[1746907218859,0.28157981,653.49,652.0,0.30674846]
[1746907219058,1.96604543,653.67,652.0,0.30674846]
[1746907219561,0.8584697,653.66,652.0,0.30674846]
[1746907219959,0.28163234,653.65,652.0,0.30674846]
[1746907220361,0.28163234,653.64,652.0,0.30674846]
[1746907220653,0.28163234,653.63,652.0,0.30674846]
[1746907221158,0.28163234,653.62,652.0,0.30674846]
[1746907221659,0.28163234,653.61,652.0,0.30674846]
[1746907222156,0.28163234,653.6,652.0,0.30674846]
[1746907222455,0.28163234,653.59,652.0,0.30674846]
[1746907222861,0.28163234,653.58,652.0,0.30674846]
[1746907223360,0.28163234,653.57,652.0,0.30674846]
[1746907223761,0.28163234,653.56,652.0,0.30674846]
[1746907224060,0.28163234,653.55,652.0,0.30674846]
[1746907224360,0.28163234,653.54,652.0,0.30674846]
[1746907224760,0.28163234,653.53,652.0,0.30674846]
[1746907225357,0.28163234,653.52,652.0,0.30674846]
[1746907225661,0.28163234,653.51,652.01,0.27363359]
[1746907226062,0.28163234,653.5,652.01,0.27363359]
[1746907226462,0.28163234,653.49,652.01,0.27363359]
[1746907226757,0.28163234,653.48,652.01,0.27363359]
[1746907226964,0.28163234,653.48,652.03,0.30673435]
[1746907227164,0.28163234,653.47,652.03,0.30673435]
[1746907227461,0.28163234,653.7,652.03,0.30673435]
[1746907227864,0.28163234,653.69,652.03,0.30673435]
[1746907228266,0.28163234,653.68,652.03,0.30673435]
[1746907228566,0.28163234,653.67,652.03,0.30673435]
[1746907228760,0.28163234,653.66,652.03,0.30673435]
[1746907229166,0.28163234,653.65,652.03,0.30673435]
[1746907229666,0.28163234,653.64,652.03,0.30673435]
[1746907230066,0.28163234,653.63,652.03,0.30673435]
[1746907230468,0.28163234,653.62,652.04,0.27351839]
[1746907230867,0.28163234,653.61,652.04,0.27351839]